[Event "*** Titled Tuesday Blitz"]
[Site "Chess.com"]
[Date "2021.03.30"]
[Round "7"]
[White "CraiggoryC"]
[Black "Blitzking642"]
[Result "0-1"]
[WhiteElo "2265"]
[BlackElo "2438"]
[TimeControl "180+1"]
[EndTime "11:18:30 PDT"]
[Termination "Blitzking642 won on time"]

1. e4 {[%clk 0:03:00.9]} 1... e6 {[%clk 0:03:00]} 2. d4 {[%clk 0:03:00.4]} 2...
d5 {[%clk 0:03:00.3]} 3. e5 {[%clk 0:03:01.1]} 3... c5 {[%clk 0:02:59.9]} 4. c3
{[%clk 0:03:01.8]} 4... Nc6 {[%clk 0:02:59.8]} 5. Nf3 {[%clk 0:03:02.5]} 5...
Qb6 {[%clk 0:02:59.1]} 6. a3 {[%clk 0:03:02.2]} 6... c4 {[%clk 0:02:58.3]} 7.
Nbd2 {[%clk 0:03:01.5]} 7... Na5 {[%clk 0:02:57.3]} 8. g3 {[%clk 0:03:00.1]}
8... Bd7 {[%clk 0:02:55.3]} 9. Bg2 {[%clk 0:02:53.3]} 9... Ne7 {[%clk
0:02:54.9]} 10. O-O {[%clk 0:02:53.8]} 10... Nc8 {[%clk 0:02:50.2]} 11. Re1
{[%clk 0:02:43.9]} 11... Qc7 {[%clk 0:02:49.4]} 12. h4 {[%clk 0:02:43]} 12...
Nb6 {[%clk 0:02:49.4]} 13. Rb1 {[%clk 0:02:36.5]} 13... Ba4 {[%clk 0:02:47.9]}
14. Qe2 {[%clk 0:02:29]} 14... h6 {[%clk 0:02:44.1]} 15. Nf1 {[%clk 0:02:25.1]}
15... O-O-O {[%clk 0:02:42.4]} 16. Bf4 {[%clk 0:02:11.1]} 16... Be7 {[%clk
0:02:23.1]} 17. h5 {[%clk 0:02:10.2]} 17... g5 {[%clk 0:02:02.9]} 18. hxg6
{[%clk 0:02:08.7]} 18... fxg6 {[%clk 0:02:03]} 19. Bh3 {[%clk 0:01:52.1]} 19...
Bd7 {[%clk 0:01:57.6]} 20. g4 {[%clk 0:01:32.1]} 20... g5 {[%clk 0:01:48.8]} 21.
Bg3 {[%clk 0:01:31.3]} 21... Rdg8 {[%clk 0:01:30.9]} 22. N3h2 {[%clk 0:00:59.1]}
22... Be8 {[%clk 0:01:30.3]} 23. Ne3 {[%clk 0:00:49.8]} 23... Bg6 {[%clk
0:01:30.1]} 24. Rbd1 {[%clk 0:00:45.4]} 24... Bd3 {[%clk 0:01:18.3]} 25. Rxd3
{[%clk 0:00:43.4]} 25... cxd3 {[%clk 0:01:18.5]} 26. Qxd3 {[%clk 0:00:44.3]}
26... Nac4 {[%clk 0:01:13.6]} 27. Nxc4 {[%clk 0:00:36.2]} 27... Qxc4 {[%clk
0:01:12.1]} 28. Qxc4+ {[%clk 0:00:36.5]} 28... Nxc4 {[%clk 0:01:10.9]} 29. Re2
{[%clk 0:00:34.8]} 29... Rf8 {[%clk 0:01:08]} 30. Nf1 {[%clk 0:00:26.4]} 30...
Kd7 {[%clk 0:01:05.3]} 31. Ne3 {[%clk 0:00:25.8]} 31... Nxe3 {[%clk 0:01:02.3]}
32. fxe3 {[%clk 0:00:18.9]} 32... Rf3 {[%clk 0:00:35.6]} 33. Kg2 {[%clk
0:00:17.2]} 33... Rf7 {[%clk 0:00:29.7]} 34. Rf2 {[%clk 0:00:17.2]} 34... Rxf2+
{[%clk 0:00:29.2]} 35. Kxf2 {[%clk 0:00:17.2]} 35... b5 {[%clk 0:00:28.4]} 36.
Bf1 {[%clk 0:00:16.4]} 36... Rb8 {[%clk 0:00:27]} 37. Be2 {[%clk 0:00:14.6]}
37... a5 {[%clk 0:00:27.2]} 38. Ke1 {[%clk 0:00:12.3]} 38... b4 {[%clk
0:00:27.1]} 39. axb4 {[%clk 0:00:11.8]} 39... axb4 {[%clk 0:00:28]} 40. Kd2
{[%clk 0:00:10.6]} 40... bxc3+ {[%clk 0:00:27.3]} 41. bxc3 {[%clk 0:00:10.4]}
41... Rb2+ {[%clk 0:00:26.7]} 42. Kd3 {[%clk 0:00:10.2]} 42... Bd8 {[%clk
0:00:22.4]} 43. Bf3 {[%clk 0:00:08]} 43... Ba5 {[%clk 0:00:20.8]} 44. e4 {[%clk
0:00:07.2]} 44... dxe4+ {[%clk 0:00:17.9]} 45. Bxe4 {[%clk 0:00:07.3]} 45... Rb3
{[%clk 0:00:18.3]} 46. Be1 {[%clk 0:00:06.8]} 46... Rb1 {[%clk 0:00:18.6]} 47.
Kd2 {[%clk 0:00:05.6]} 47... Bxc3+ {[%clk 0:00:17.5]} 48. Kxc3 {[%clk
0:00:02.4]} 48... Rxe1 {[%clk 0:00:18.4]} 0-1

[Event "*** Titled Tuesday Blitz"]
[Site "Chess.com"]
[Date "2021.03.30"]
[Round "7"]
[White "Leonid_Starozhilov"]
[Black "ChristopherYoo"]
[Result "1-0"]
[WhiteElo "2728"]
[BlackElo "2906"]
[TimeControl "180+1"]
[EndTime "11:18:31 PDT"]
[Termination "Leonid_Starozhilov won by checkmate"]

1. e4 {[%clk 0:03:00.9]} 1... c5 {[%clk 0:02:57.7]} 2. Nf3 {[%clk 0:03:00.9]}
2... e6 {[%clk 0:02:57.4]} 3. c4 {[%clk 0:03:00.7]} 3... Nf6 {[%clk 0:02:43.2]}
4. Nc3 {[%clk 0:03:00]} 4... d5 {[%clk 0:02:36.1]} 5. cxd5 {[%clk 0:02:38.3]}
5... exd5 {[%clk 0:02:35.4]} 6. exd5 {[%clk 0:02:36.6]} 6... Nxd5 {[%clk
0:02:34.8]} 7. Bb5+ {[%clk 0:02:37.2]} 7... Bd7 {[%clk 0:02:23.9]} 8. Qe2+
{[%clk 0:02:32.3]} 8... Ne7 {[%clk 0:02:18.8]} 9. d4 {[%clk 0:02:12.4]} 9...
Bxb5 {[%clk 0:01:55.1]} 10. Qxb5+ {[%clk 0:02:09]} 10... Qd7 {[%clk 0:01:46.6]}
11. dxc5 {[%clk 0:02:08.8]} 11... Nec6 {[%clk 0:01:43.5]} 12. O-O {[%clk
0:02:06.3]} 12... Be7 {[%clk 0:01:41.4]} 13. Rd1 {[%clk 0:02:06.5]} 13... Qc8
{[%clk 0:01:41.1]} 14. Bf4 {[%clk 0:01:39.9]} 14... O-O {[%clk 0:01:40.5]} 15.
Bd6 {[%clk 0:01:27.1]} 15... Na6 {[%clk 0:01:38.2]} 16. Nd5 {[%clk 0:01:20.2]}
16... Re8 {[%clk 0:01:34.4]} 17. Nxe7+ {[%clk 0:01:06.3]} 17... Nxe7 {[%clk
0:01:33.4]} 18. Re1 {[%clk 0:01:06.4]} 18... Qc6 {[%clk 0:01:28.2]} 19. Qc4
{[%clk 0:00:53.4]} 19... Qd5 {[%clk 0:01:20.6]} 20. Qg4 {[%clk 0:00:23.5]} 20...
Nc6 {[%clk 0:01:13.2]} 21. Qd7 {[%clk 0:00:18.3]} 21... Red8 {[%clk 0:00:13.8]}
22. Qxb7 {[%clk 0:00:16.8]} 22... Nab4 {[%clk 0:00:14.2]} 23. Rad1 {[%clk
0:00:08.2]} 23... Qxa2 {[%clk 0:00:14.2]} 24. Qb5 {[%clk 0:00:06.9]} 24... a6
{[%clk 0:00:13.6]} 25. Qe2 {[%clk 0:00:06.4]} 25... Qb3 {[%clk 0:00:11.9]} 26.
h4 {[%clk 0:00:06.3]} 26... h6 {[%clk 0:00:11.6]} 27. h5 {[%clk 0:00:06.8]}
27... a5 {[%clk 0:00:11.7]} 28. Nd4 {[%clk 0:00:06.1]} 28... Nxd4 {[%clk
0:00:11.8]} 29. Rxd4 {[%clk 0:00:07]} 29... Nc2 {[%clk 0:00:06]} 30. Rd3 {[%clk
0:00:07]} 30... Qa4 {[%clk 0:00:03.5]} 31. Rc1 {[%clk 0:00:05.4]} 31... Nb4
{[%clk 0:00:03.2]} 32. Rg3 {[%clk 0:00:05.6]} 32... Nc6 {[%clk 0:00:03.7]} 33.
Rc4 {[%clk 0:00:05.1]} 33... Qa1+ {[%clk 0:00:01.8]} 34. Kh2 {[%clk 0:00:05.5]}
34... Qb1 {[%clk 0:00:01.7]} 35. Rcg4 {[%clk 0:00:05.4]} 35... g5 {[%clk
0:00:01.8]} 36. hxg6 {[%clk 0:00:05.1]} 36... Re8 {[%clk 0:00:01.6]} 37. gxf7+
{[%clk 0:00:05.3]} 37... Kxf7 {[%clk 0:00:02.5]} 38. Rg7+ {[%clk 0:00:05.7]}
38... Kf6 {[%clk 0:00:02.1]} 39. Qf3+ {[%clk 0:00:04.9]} 39... Ke6 {[%clk
0:00:02.4]} 40. Qxc6 {[%clk 0:00:04.6]} 40... Rac8 {[%clk 0:00:01.5]} 41. R3g6+
{[%clk 0:00:05]} 41... Kf5 {[%clk 0:00:01.9]} 42. Qf3# {[%clk 0:00:05.2]} 1-0

[Event "*** Titled Tuesday Blitz"]
[Site "Chess.com"]
[Date "2021.03.30"]
[Round "7"]
[White "AniJak"]
[Black "lucachess49"]
[Result "0-1"]
[WhiteElo "2309"]
[BlackElo "2438"]
[TimeControl "180+1"]
[EndTime "11:18:31 PDT"]
[Termination "lucachess49 won by checkmate"]

1. e4 {[%clk 0:03:00.9]} 1... e5 {[%clk 0:02:59.4]} 2. Nf3 {[%clk 0:03:00.8]}
2... Nc6 {[%clk 0:02:59.8]} 3. Bb5 {[%clk 0:03:01.2]} 3... a6 {[%clk 0:02:59.8]}
4. Ba4 {[%clk 0:03:01.8]} 4... Nf6 {[%clk 0:02:59.2]} 5. d3 {[%clk 0:03:01.5]}
5... d6 {[%clk 0:02:58.6]} 6. O-O {[%clk 0:03:01.1]} 6... g6 {[%clk 0:02:57.9]}
7. c3 {[%clk 0:02:56.3]} 7... Bg7 {[%clk 0:02:57.4]} 8. Re1 {[%clk 0:02:48.5]}
8... O-O {[%clk 0:02:55.5]} 9. Nbd2 {[%clk 0:02:47.6]} 9... b5 {[%clk
0:02:50.2]} 10. Bc2 {[%clk 0:02:47]} 10... Re8 {[%clk 0:02:49.3]} 11. Nf1 {[%clk
0:02:44.7]} 11... Bb7 {[%clk 0:02:36.3]} 12. d4 {[%clk 0:02:43.5]} 12... exd4
{[%clk 0:02:35.7]} 13. cxd4 {[%clk 0:02:43.9]} 13... Nb4 {[%clk 0:02:34.5]} 14.
Ng3 {[%clk 0:02:38.5]} 14... Nxc2 {[%clk 0:02:28.4]} 15. Qxc2 {[%clk 0:02:39.4]}
15... Rc8 {[%clk 0:02:25.7]} 16. Bg5 {[%clk 0:02:35.2]} 16... h6 {[%clk
0:02:23.6]} 17. Bxf6 {[%clk 0:02:31.8]} 17... Qxf6 {[%clk 0:02:24.5]} 18. Rad1
{[%clk 0:02:19.1]} 18... c5 {[%clk 0:02:22.2]} 19. e5 {[%clk 0:02:10.7]} 19...
Qf4 {[%clk 0:01:47.1]} 20. Ne2 {[%clk 0:01:56.4]} 20... Qe4 {[%clk 0:01:42.6]}
21. Qxe4 {[%clk 0:01:51.2]} 21... Bxe4 {[%clk 0:01:43.5]} 22. exd6 {[%clk
0:01:51.5]} 22... Red8 {[%clk 0:01:38.7]} 23. dxc5 {[%clk 0:01:50.1]} 23... Bxf3
{[%clk 0:01:38]} 24. gxf3 {[%clk 0:01:47.8]} 24... Rxc5 {[%clk 0:01:37]} 25. Nf4
{[%clk 0:01:36.4]} 25... Re5 {[%clk 0:01:17.9]} 26. Nd5 {[%clk 0:01:08.9]} 26...
Rxe1+ {[%clk 0:01:01.3]} 27. Rxe1 {[%clk 0:01:09.8]} 27... Rxd6 {[%clk
0:01:01.7]} 28. Ne7+ {[%clk 0:00:54.5]} 28... Kf8 {[%clk 0:00:49.2]} 29. b3
{[%clk 0:00:55.4]} 29... Bd4 {[%clk 0:00:26.6]} 30. Kf1 {[%clk 0:00:48.5]} 30...
Bc5 {[%clk 0:00:24.2]} 31. Rc1 {[%clk 0:00:26.2]} 31... Ba3 {[%clk 0:00:20.5]}
32. Rc7 {[%clk 0:00:24.8]} 32... Rd1+ {[%clk 0:00:08.9]} 33. Kg2 {[%clk
0:00:24.9]} 33... Ra1 {[%clk 0:00:09.6]} 34. Nd5 {[%clk 0:00:23.5]} 34... Rxa2
{[%clk 0:00:09.4]} 35. Rc6 {[%clk 0:00:17.9]} 35... Bb2 {[%clk 0:00:08]} 36. Nb6
{[%clk 0:00:16.9]} 36... a5 {[%clk 0:00:07.6]} 37. Nd7+ {[%clk 0:00:15.9]} 37...
Kg7 {[%clk 0:00:07.4]} 38. Ne5 {[%clk 0:00:14.8]} 38... Bxe5 {[%clk 0:00:06.6]}
39. Rc5 {[%clk 0:00:15.4]} 39... Bf6 {[%clk 0:00:06.7]} 40. Rxb5 {[%clk
0:00:16.3]} 40... Bc3 {[%clk 0:00:06.5]} 41. Kg3 {[%clk 0:00:16.3]} 41... Bd4
{[%clk 0:00:06.5]} 42. Kg4 {[%clk 0:00:15.6]} 42... Bxf2 {[%clk 0:00:06.9]} 43.
h4 {[%clk 0:00:15.9]} 43... h5+ {[%clk 0:00:06.8]} 44. Kg5 {[%clk 0:00:15.5]}
44... Be3+ {[%clk 0:00:07.1]} 45. f4 {[%clk 0:00:13.8]} 45... Rg2# {[%clk
0:00:07.6]} 0-1

[Event "*** Titled Tuesday Blitz"]
[Site "Chess.com"]
[Date "2021.03.30"]
[Round "7"]
[White "KNCP_719"]
[Black "Cambek64"]
[Result "0-1"]
[WhiteElo "2622"]
[BlackElo "2481"]
[TimeControl "180+1"]
[EndTime "11:18:34 PDT"]
[Termination "Cambek64 won by resignation"]

1. e4 {[%clk 0:03:00.9]} 1... e6 {[%clk 0:02:59.2]} 2. c4 {[%clk 0:03:01]} 2...
c5 {[%clk 0:02:58.2]} 3. Nc3 {[%clk 0:03:00.6]} 3... Nc6 {[%clk 0:02:58.7]} 4.
g3 {[%clk 0:03:01]} 4... g6 {[%clk 0:02:56.4]} 5. Bg2 {[%clk 0:03:01.5]} 5...
Bg7 {[%clk 0:02:56.9]} 6. Nge2 {[%clk 0:03:02.2]} 6... d6 {[%clk 0:02:56.8]} 7.
d3 {[%clk 0:03:02.8]} 7... Nge7 {[%clk 0:02:56.9]} 8. Be3 {[%clk 0:03:03.4]}
8... Nd4 {[%clk 0:02:57]} 9. Qd2 {[%clk 0:03:03.2]} 9... O-O {[%clk 0:02:56.2]}
10. O-O {[%clk 0:02:58.6]} 10... Nec6 {[%clk 0:02:55.2]} 11. Bh6 {[%clk
0:02:56.8]} 11... Rb8 {[%clk 0:02:55.2]} 12. Bxg7 {[%clk 0:02:56.1]} 12... Kxg7
{[%clk 0:02:54.7]} 13. Nxd4 {[%clk 0:02:41.8]} 13... Nxd4 {[%clk 0:02:52.3]} 14.
Ne2 {[%clk 0:02:36.1]} 14... Nxe2+ {[%clk 0:02:49.9]} 15. Qxe2 {[%clk 0:02:37]}
15... e5 {[%clk 0:02:49.9]} 16. f4 {[%clk 0:02:29.5]} 16... f6 {[%clk
0:02:50.2]} 17. a4 {[%clk 0:02:24.3]} 17... a6 {[%clk 0:02:48.6]} 18. Qd2 {[%clk
0:02:18.1]} 18... Bd7 {[%clk 0:02:42.4]} 19. b4 {[%clk 0:02:16.2]} 19... b6
{[%clk 0:02:40.3]} 20. a5 {[%clk 0:01:51.5]} 20... cxb4 {[%clk 0:02:37.6]} 21.
Qxb4 {[%clk 0:01:51.2]} 21... Qc7 {[%clk 0:02:37.9]} 22. axb6 {[%clk 0:01:44.2]}
22... Qxb6+ {[%clk 0:02:26.5]} 23. Qxb6 {[%clk 0:01:42.9]} 23... Rxb6 {[%clk
0:02:27]} 24. Ra3 {[%clk 0:01:06.7]} 24... Rfb8 {[%clk 0:02:25.8]} 25. Rfa1
{[%clk 0:01:07.2]} 25... Bc8 {[%clk 0:02:26]} 26. Bf1 {[%clk 0:00:29.8]} 26...
Rb2 {[%clk 0:02:23.6]} 27. R3a2 {[%clk 0:00:28.2]} 27... Rxa2 {[%clk 0:02:18.2]}
28. Rxa2 {[%clk 0:00:28.5]} 28... Kf8 {[%clk 0:02:17.3]} 29. Kf2 {[%clk
0:00:25]} 29... Ke7 {[%clk 0:02:17.2]} 30. Be2 {[%clk 0:00:22.9]} 30... Kd8
{[%clk 0:02:16.3]} 31. Bd1 {[%clk 0:00:21.3]} 31... Kc7 {[%clk 0:02:16.1]} 32.
Ba4 {[%clk 0:00:20.6]} 32... Rb4 {[%clk 0:02:11.5]} 33. Be8 {[%clk 0:00:19.2]}
33... Kb6 {[%clk 0:02:10.3]} 34. Ke3 {[%clk 0:00:19.6]} 34... a5 {[%clk
0:02:10.6]} 35. Bf7 {[%clk 0:00:15.9]} 35... Bd7 {[%clk 0:02:08.7]} 36. Bg8
{[%clk 0:00:14.9]} 36... h6 {[%clk 0:02:07.9]} 37. Ra3 {[%clk 0:00:10.1]} 37...
a4 {[%clk 0:02:06.8]} 38. d4 {[%clk 0:00:09.5]} 38... Ka5 {[%clk 0:01:54.3]} 39.
Kd3 {[%clk 0:00:08.4]} 39... Rb1 {[%clk 0:01:44.1]} 40. fxe5 {[%clk 0:00:07.3]}
40... fxe5 {[%clk 0:01:43.2]} 41. dxe5 {[%clk 0:00:06.2]} 41... dxe5 {[%clk
0:01:42.3]} 42. c5 {[%clk 0:00:04]} 42... Kb4 {[%clk 0:01:36.4]} 43. Ra2 {[%clk
0:00:01.7]} 43... Kxc5 {[%clk 0:01:34.8]} 44. Rc2+ {[%clk 0:00:02.3]} 44... Kd6
{[%clk 0:01:34.5]} 45. Ra2 {[%clk 0:00:02.3]} 45... Rb4 {[%clk 0:01:29.7]} 46.
Bd5 {[%clk 0:00:02]} 46... Be6 {[%clk 0:01:22]} 47. Kc3 {[%clk 0:00:02.6]} 47...
Rd4 {[%clk 0:01:21.1]} 48. Bxe6 {[%clk 0:00:02.9]} 48... Kxe6 {[%clk 0:01:20.6]}
49. Rb2 {[%clk 0:00:02.9]} 49... Rxe4 {[%clk 0:01:19.9]} 50. Rb6+ {[%clk
0:00:03.5]} 50... Kf5 {[%clk 0:01:20]} 51. Kd3 {[%clk 0:00:04.4]} 51... Rd4+
{[%clk 0:01:19.5]} 52. Ke3 {[%clk 0:00:05.3]} 52... h5 {[%clk 0:01:19.6]} 53. h3
{[%clk 0:00:05.6]} 53... h4 {[%clk 0:01:08.7]} 54. g4+ {[%clk 0:00:04.4]} 54...
Kg5 {[%clk 0:01:08.4]} 55. Ra6 {[%clk 0:00:05.1]} 55... Rb4 {[%clk 0:01:07.7]}
56. Ra5 {[%clk 0:00:05.2]} 56... Rb3+ {[%clk 0:01:08.1]} 57. Ke4 {[%clk
0:00:05.6]} 57... Rxh3 {[%clk 0:01:08.4]} 58. Rxa4 {[%clk 0:00:05]} 58... Kxg4
{[%clk 0:01:06.9]} 59. Kxe5+ {[%clk 0:00:04.7]} 59... Kg5 {[%clk 0:01:06.9]} 60.
Ra1 {[%clk 0:00:03.9]} 60... Re3+ {[%clk 0:01:06.5]} 61. Kd4 {[%clk 0:00:04.6]}
61... Re8 {[%clk 0:01:06.3]} 62. Rg1+ {[%clk 0:00:04.6]} 62... Kh5 {[%clk
0:01:06.4]} 63. Rf1 {[%clk 0:00:02.9]} 63... g5 {[%clk 0:01:06.4]} 0-1

[Event "*** Titled Tuesday Blitz"]
[Site "Chess.com"]
[Date "2021.03.30"]
[Round "7"]
[White "Pelopidass"]
[Black "attack2mateU"]
[Result "1/2-1/2"]
[WhiteElo "2579"]
[BlackElo "2742"]
[TimeControl "180+1"]
[EndTime "11:18:35 PDT"]
[Termination "Game drawn by repetition"]

1. d4 {[%clk 0:03:00.9]} 1... Nf6 {[%clk 0:02:59.2]} 2. Nf3 {[%clk 0:03:01.3]}
2... g6 {[%clk 0:02:59.5]} 3. g3 {[%clk 0:03:01.7]} 3... Bg7 {[%clk 0:02:59.8]}
4. Bg2 {[%clk 0:03:02.3]} 4... O-O {[%clk 0:03:00.5]} 5. O-O {[%clk 0:03:02.8]}
5... d5 {[%clk 0:03:01.4]} 6. c4 {[%clk 0:03:01.9]} 6... dxc4 {[%clk 0:03:02.3]}
7. Na3 {[%clk 0:03:00.8]} 7... c3 {[%clk 0:03:02.7]} 8. bxc3 {[%clk 0:03:01.7]}
8... c5 {[%clk 0:03:03.2]} 9. Ne5 {[%clk 0:03:00.2]} 9... Nc6 {[%clk 0:03:02.8]}
10. Nac4 {[%clk 0:02:56.1]} 10... Be6 {[%clk 0:03:02.6]} 11. Nxc6 {[%clk
0:02:48.4]} 11... bxc6 {[%clk 0:03:02.7]} 12. Ne5 {[%clk 0:02:48.1]} 12... Nd5
{[%clk 0:02:40.4]} 13. Qd2 {[%clk 0:02:24.3]} 13... Qc7 {[%clk 0:02:36.3]} 14.
Ba3 {[%clk 0:01:44.4]} 14... Bxe5 {[%clk 0:01:49.8]} 15. dxe5 {[%clk 0:01:42.3]}
15... Qa5 {[%clk 0:01:50.4]} 16. Bxd5 {[%clk 0:01:31.5]} 16... cxd5 {[%clk
0:01:42.2]} 17. Bc1 {[%clk 0:01:28.6]} 17... Rfd8 {[%clk 0:01:20.6]} 18. Qe3
{[%clk 0:01:28.5]} 18... Rd7 {[%clk 0:00:45]} 19. h4 {[%clk 0:01:27.5]} 19...
Rad8 {[%clk 0:00:45.3]} 20. h5 {[%clk 0:01:27.2]} 20... d4 {[%clk 0:00:44.6]}
21. cxd4 {[%clk 0:01:27.5]} 21... cxd4 {[%clk 0:00:45.5]} 22. Qg5 {[%clk
0:01:17.1]} 22... Bh3 {[%clk 0:00:37.9]} 23. Rd1 {[%clk 0:01:11]} 23... Qd5
{[%clk 0:00:37.9]} 24. f3 {[%clk 0:01:00.2]} 24... Qc4 {[%clk 0:00:38.2]} 25.
Rd3 {[%clk 0:00:51.1]} 25... Bf5 {[%clk 0:00:34.7]} 26. Rd2 {[%clk 0:00:43.4]}
26... Qc5 {[%clk 0:00:25.1]} 27. g4 {[%clk 0:00:37.6]} 27... Be6 {[%clk
0:00:19]} 28. Kg2 {[%clk 0:00:33.7]} 28... d3 {[%clk 0:00:17.1]} 29. e3 {[%clk
0:00:31.4]} 29... Rc8 {[%clk 0:00:14.3]} 30. hxg6 {[%clk 0:00:25.9]} 30... hxg6
{[%clk 0:00:14.4]} 31. Bb2 {[%clk 0:00:24.4]} 31... Qb4 {[%clk 0:00:13.4]} 32.
e4 {[%clk 0:00:19.8]} 32... Rc2 {[%clk 0:00:11]} 33. Rd1 {[%clk 0:00:18.9]}
33... Qxb2 {[%clk 0:00:10.4]} 34. Kg3 {[%clk 0:00:16.7]} 34... Rxd2 {[%clk
0:00:10]} 35. Rxd2 {[%clk 0:00:17.1]} 35... Qc1 {[%clk 0:00:10.3]} 36. Qh6
{[%clk 0:00:15.8]} 36... Qg1+ {[%clk 0:00:09.2]} 37. Kf4 {[%clk 0:00:16.3]}
37... f6 {[%clk 0:00:03.3]} 38. Qxg6+ {[%clk 0:00:13.7]} 38... Kf8 {[%clk
0:00:03.8]} 39. Qh6+ {[%clk 0:00:13.8]} 39... Ke8 {[%clk 0:00:02.7]} 40. Qh8+
{[%clk 0:00:10.1]} 40... Kf7 {[%clk 0:00:02.9]} 41. Qh7+ {[%clk 0:00:09.6]}
41... Kf8 {[%clk 0:00:03.1]} 42. Qh6+ {[%clk 0:00:09.9]} 42... Kg8 {[%clk
0:00:02]} 43. Qg6+ {[%clk 0:00:10]} 43... Kf8 {[%clk 0:00:02.6]} 44. Qh6+ {[%clk
0:00:10.5]} 1/2-1/2

[Event "*** Titled Tuesday Blitz"]
[Site "Chess.com"]
[Date "2021.03.30"]
[Round "7"]
[White "Gabix_94"]
[Black "Gnechko_Ruslan"]
[Result "0-1"]
[WhiteElo "2755"]
[BlackElo "2475"]
[TimeControl "180+1"]
[EndTime "11:18:37 PDT"]
[Termination "Gnechko_Ruslan won by resignation"]

1. e4 {[%clk 0:03:00.9]} 1... e6 {[%clk 0:02:59.4]} 2. d4 {[%clk 0:03:00.5]}
2... d5 {[%clk 0:03:00]} 3. Bd3 {[%clk 0:03:00.8]} 3... dxe4 {[%clk 0:02:58]} 4.
Bxe4 {[%clk 0:03:01.7]} 4... Nf6 {[%clk 0:02:58.6]} 5. Bf3 {[%clk 0:03:02.3]}
5... c5 {[%clk 0:02:59.2]} 6. Ne2 {[%clk 0:03:02.8]} 6... Nc6 {[%clk 0:02:58.5]}
7. Be3 {[%clk 0:02:58.8]} 7... cxd4 {[%clk 0:02:57.8]} 8. Nxd4 {[%clk
0:02:59.7]} 8... Bd7 {[%clk 0:02:56]} 9. Nc3 {[%clk 0:02:59.3]} 9... Bb4 {[%clk
0:02:55.2]} 10. Nb5 {[%clk 0:02:57.5]} 10... O-O {[%clk 0:02:53.2]} 11. a3
{[%clk 0:02:57.5]} 11... Bxc3+ {[%clk 0:02:43.2]} 12. Nxc3 {[%clk 0:02:58.4]}
12... Ne5 {[%clk 0:02:43]} 13. Be2 {[%clk 0:02:52.2]} 13... Bc6 {[%clk
0:02:37.8]} 14. O-O {[%clk 0:02:49.1]} 14... Qe7 {[%clk 0:02:31.2]} 15. Qd4
{[%clk 0:02:44.7]} 15... Ng6 {[%clk 0:02:30.2]} 16. Rad1 {[%clk 0:02:40.7]}
16... Rfd8 {[%clk 0:02:30.6]} 17. Qb4 {[%clk 0:02:39.8]} 17... Qc7 {[%clk
0:02:18.2]} 18. Rxd8+ {[%clk 0:02:35.9]} 18... Qxd8 {[%clk 0:02:14.6]} 19. Rd1
{[%clk 0:02:33.8]} 19... Qc7 {[%clk 0:02:14]} 20. h3 {[%clk 0:02:24.9]} 20... h6
{[%clk 0:02:11.8]} 21. a4 {[%clk 0:02:21.1]} 21... Qe5 {[%clk 0:02:04.4]} 22.
Qc5 {[%clk 0:02:12.2]} 22... Qxc5 {[%clk 0:01:28.2]} 23. Bxc5 {[%clk 0:02:13.1]}
23... a6 {[%clk 0:01:28.6]} 24. a5 {[%clk 0:02:07.1]} 24... Rc8 {[%clk
0:01:27.8]} 25. Bb6 {[%clk 0:02:06.3]} 25... Nd5 {[%clk 0:01:26.8]} 26. Nxd5
{[%clk 0:02:05.7]} 26... Bxd5 {[%clk 0:01:26.6]} 27. c4 {[%clk 0:02:05.4]} 27...
Bc6 {[%clk 0:01:26.2]} 28. f3 {[%clk 0:02:00.1]} 28... Nf4 {[%clk 0:01:26.3]}
29. Bf1 {[%clk 0:02:00.4]} 29... e5 {[%clk 0:01:25.3]} 30. Kf2 {[%clk
0:01:59.5]} 30... f5 {[%clk 0:01:23.3]} 31. b4 {[%clk 0:01:54.7]} 31... e4
{[%clk 0:01:10.9]} 32. fxe4 {[%clk 0:01:51.4]} 32... Bxe4 {[%clk 0:01:10.1]} 33.
g3 {[%clk 0:01:48.7]} 33... Ne6 {[%clk 0:01:05.8]} 34. Rd6 {[%clk 0:01:47.5]}
34... Kf7 {[%clk 0:01:03.1]} 35. c5 {[%clk 0:01:45.5]} 35... Ke7 {[%clk
0:00:57.5]} 36. Bc4 {[%clk 0:01:40.9]} 36... Ng5 {[%clk 0:00:56.6]} 37. h4
{[%clk 0:01:35.5]} 37... Nf7 {[%clk 0:00:51.4]} 38. Re6+ {[%clk 0:01:33.3]}
38... Kf8 {[%clk 0:00:51.9]} 39. b5 {[%clk 0:01:21.8]} 39... axb5 {[%clk
0:00:40.1]} 40. Bxb5 {[%clk 0:01:22.7]} 40... g5 {[%clk 0:00:35]} 41. hxg5
{[%clk 0:01:20.8]} 41... hxg5 {[%clk 0:00:35.9]} 42. g4 {[%clk 0:01:18.1]} 42...
Bd5 {[%clk 0:00:29.8]} 43. Rf6 {[%clk 0:01:08.4]} 43... fxg4 {[%clk 0:00:29.8]}
44. Bd7 {[%clk 0:01:05.2]} 44... Ra8 {[%clk 0:00:26.9]} 45. Kg3 {[%clk
0:01:00.6]} 45... Ke7 {[%clk 0:00:22.8]} 46. Rxf7+ {[%clk 0:00:55]} 46... Bxf7
{[%clk 0:00:23.1]} 47. Bxg4 {[%clk 0:00:55.9]} 47... Bd5 {[%clk 0:00:22]} 48.
Bf5 {[%clk 0:00:50.4]} 48... Kf6 {[%clk 0:00:21.1]} 49. Bd3 {[%clk 0:00:45.5]}
49... Re8 {[%clk 0:00:21]} 50. a6 {[%clk 0:00:33.2]} 50... Re3+ {[%clk
0:00:18.6]} 51. Kf2 {[%clk 0:00:33.4]} 51... Rxd3 {[%clk 0:00:18.7]} 52. c6
{[%clk 0:00:33.5]} 52... bxc6 {[%clk 0:00:16.2]} 53. Bc5 {[%clk 0:00:32.9]}
53... Rd2+ {[%clk 0:00:15.4]} 54. Ke3 {[%clk 0:00:33.1]} 54... Ra2 {[%clk
0:00:16.3]} 55. a7 {[%clk 0:00:33.3]} 55... Kf5 {[%clk 0:00:16.8]} 56. Kd4
{[%clk 0:00:33]} 56... g4 {[%clk 0:00:16.8]} 57. Ba3 {[%clk 0:00:33.4]} 57...
Rxa3 {[%clk 0:00:16.3]} 0-1